bitfinex-derivatives/quotes_SOLF0:USTF0_20250211
["timestamp","ask_amount","ask_price","bid_price","bid_amount"]
[1739282189920,35.67976926,198.4,198.23,1.4832]
[1739282190123,0.03384321,198.31,198.28,0.03477285]
[1739282190520,35.67976926,198.4,198.23,1.4832]
[1739282190824,0.03319453,198.31,198.28,0.03736981]
[1739282191219,35.67976926,198.4,198.25,35.67976926]
[1739282191415,0.03269795,198.31,198.28,0.03577218]
[1739282191619,35.67976926,198.43,198.23,1.4832]
[1739282191822,0.035791,198.31,198.28,0.03622862]
[1739282192018,35.67976926,198.4,198.23,1.4832]
[1739282192227,0.03712619,198.31,198.23,1.4832]
[1739282192426,0.03712619,198.31,198.28,0.03729819]
[1739282192727,0.03869591,198.31,198.28,0.03729819]
[1739282193125,5.0421,198.3,198.28,0.03729819]
[1739282193430,0.03869591,198.31,198.28,0.03729819]
[1739282193627,5.0423,198.29,198.28,0.03729819]
[1739282194732,35.71846517,198.31,198.2,6.6591]
[1739282195124,35.67976926,198.31,198.2,1.6145]
[1739282195420,5.0431,198.26,198.21,5.0443]
[1739282195619,5.0431,198.26,198.2,1.6145]
[1739282196019,0.03604833,198.25,198.22,0.03341089]
[1739282196719,0.03604833,198.25,198.24,5.0436]
[1739282196919,0.03604833,198.25,198.22,0.03341089]
[1739282197928,5.07944833,198.25,198.22,0.03341089]
[1739282198120,0.03604833,198.25,198.22,0.03341089]
[1739282198523,5.0438,198.23,198.22,0.03341089]
[1739282198729,35.71581759,198.25,198.07,35.67976926]
[1739282198925,35.71581759,198.25,198.16,5.0456]
[1739282199129,35.67976926,198.28,198.13,35.67976926]
[1739282199332,35.67976926,198.28,198.1,35.67976926]
[1739282199729,35.67976926,198.23,198.07,35.67976926]
[1739282199930,35.71483878,198.23,198.2,2.065e-05]
[1739282200824,5.0443,198.21,198.2,2.065e-05]
[1739282202833,5.07906952,198.23,198.2,2.065e-05]
[1739282203135,0.03506952,198.23,198.2,2.065e-05]
[1739282203331,5.07896952,198.23,198.2,2.065e-05]
[1739282203537,0.03506952,198.23,198.2,2.065e-05]
[1739282204027,0.03506952,198.23,198.21,5.0442]
[1739282204231,0.03506952,198.23,198.2,2.065e-05]
[1739282204534,0.03506952,198.23,198.22,5.0441]
[1739282205030,35.67976926,198.37,198.2,2.065e-05]
[1739282205237,35.67976926,198.37,198.28,5.0425]
[1739282205435,35.67976926,198.37,198.22,35.67976926]
[1739282205638,35.67976926,198.34,198.23,5.0438]
[1739282205935,5.0418,198.31,198.19,35.67976926]
[1739282206137,35.67976926,198.34,198.26,5.0429]
[1739282206337,0.0373899,198.3,198.27,0.03758717]
[1739282206737,5.0416,198.32,198.27,0.03758717]
[1739282206932,0.03198634,198.3,198.27,0.03758717]
[1739282207438,1.4905,198.38,198.27,0.03758717]
[1739282207648,5.0401,198.38,198.28,35.67976926]
[1739282207838,0.03779267,198.34,198.29,1.5437]
[1739282208033,35.67976926,198.46,198.36,5.0404]
[1739282208440,35.67976926,198.46,198.31,35.67976926]
[1739282208643,1.4905,198.47,198.39,5.0398]
[1739282208845,1.4905,198.47,198.31,35.67976926]
[1739282209333,0.03547411,198.41,198.37,0.03525704]
[1739282209737,5.039,198.43,198.29,3.0554]
[1739282209933,5.039,198.43,198.37,0.03708297]
[1739282209934,0.03813513,198.41,198.37,0.03708297]
[1739282210135,35.67976926,198.4,198.37,0.03708297]
[1739282210436,35.67976926,198.4,198.37,8.297e-05]
[1739282210437,5.04,198.38,198.37,8.297e-05]
[1739282211932,5.042,198.31,198.25,5.0433]
[1739282212131,35.67976926,198.35,198.23,3.1225]
[1739282212336,35.67976926,198.35,198.24,5.0433]
[1739282212634,35.67976926,198.32,198.23,1.5787]
[1739282212833,35.67976926,198.32,198.18,1.5979]
[1739282213036,5.0437,198.24,198.11,1.5787]
[1739282213241,35.71789667,198.29,198.18,5.0451]
[1739282213536,0.03258454,198.25,198.23,0.03561137]
[1739282214736,5.0436,198.24,198.23,0.03561137]
[1739282215733,5.0436,198.24,198.23,1.137e-05]
[1739282217142,0.03258454,198.25,198.23,1.137e-05]
[1739282218440,5.0436,198.24,198.23,1.137e-05]
[1739282220638,5.07598454,198.25,198.23,1.137e-05]
[1739282220844,0.03258454,198.25,198.23,1.137e-05]
[1739282221241,36.29946926,198.36,198.26,5.0429]
[1739282221442,36.29946926,198.36,198.19,35.67976926]
[1739282221443,35.67976926,198.36,198.19,35.67976926]
[1739282221644,35.67976926,198.36,198.2,1.4648]
[1739282221843,80.15762917,198.38,198.22,35.67976926]
[1739282222145,35.67976926,198.42,198.28,35.67976926]
[1739282222349,35.67976926,198.45,198.28,35.67976926]
[1739282222549,0.03206214,198.37,198.33,0.0368444]
[1739282222843,5.0396,198.4,198.28,35.67976926]
[1739282223051,35.67976926,198.39,198.25,4.5]
[1739282223249,35.67976926,198.36,198.33,0.03611524]
[1739282223448,5.041,198.34,198.33,0.03611524]
[1739282223752,35.67976926,198.36,198.2,1.4648]
[1739282223946,35.67976926,198.3,198.2,1.4648]
[1739282224345,35.67976926,198.33,198.2,1.4648]
[1739282224545,5.0426,198.28,198.22,5.0439]
[1739282224745,35.67976926,198.27,198.25,0.03744817]
[1739282224945,35.67976926,198.27,198.25,4.817e-05]
[1739282225153,35.67976926,198.27,198.16,1.4996]
[1739282225955,35.67976926,198.3,198.16,1.4996]
[1739282226253,4.5,198.33,198.16,1.4996]
[1739282226254,0.03182691,198.23,198.2,0.03705513]
[1739282226654,5.0441,198.22,198.17,1.5243]
[1739282226850,0.03833478,198.23,198.2,0.03662818]
[1739282227257,5.0443,198.21,198.2,0.03662818]
[1739282227455,0.03833478,198.23,198.2,0.03662818]
[1739282228858,5.0443,198.21,198.2,0.03662818]
[1739282229049,0.03833478,198.23,198.2,0.03662818]
[1739282229650,35.67976926,198.32,198.2,0.03662818]
[1739282229849,35.67976926,198.32,198.16,35.67976926]
[1739282229850,5.0423,198.29,198.16,35.67976926]
[1739282230055,37.24956926,198.35,198.19,35.67976926]
[1739282230860,0.03338502,198.29,198.25,0.03360077]
[1739282231164,0.03338502,198.29,198.25,5.07670077]
[1739282231463,0.03338502,198.29,198.25,0.03360077]
[1739282232262,5.041,198.35,198.29,5.0423]
[1739282232460,35.67976926,198.38,198.29,5.0423]
[1739282232662,35.67976926,198.38,198.26,3.237]
[1739282233162,35.67976926,198.44,198.28,35.67976926]
[1739282233460,3.059e-05,198.34,198.3,0.03250332]
[1739282233661,3.059e-05,198.34,198.31,35.67976926]
[1739282233856,35.67976926,198.47,198.31,35.67976926]
[1739282234659,0.03279689,198.41,198.37,0.03357988]
[1739282235755,35.71256615,198.41,198.37,0.03357988]
[1739282235959,35.67976926,198.38,198.37,0.03357988]
[1739282236170,35.67976926,198.38,198.37,7.988e-05]
[1739282236463,40.71976926,198.38,198.37,7.988e-05]
[1739282236658,40.71976926,198.38,198.26,3.237]
[1739282236860,5.0423,198.3,198.26,3.237]
[1739282237162,35.67976926,198.32,198.16,35.67976926]
[1739282237362,5.0431,198.26,198.2,6.5308]
[1739282237959,5.0431,198.26,198.21,5.0443]
[1739282238265,35.67976926,198.32,198.21,5.0443]
[1739282238266,5.0438,198.23,198.21,0.03451884]
[1739282238455,0.03536803,198.25,198.21,0.03451884]
[1739282238962,5.07866803,198.25,198.21,0.03451884]
[1739282239159,0.03536803,198.25,198.21,0.03451884]
[1739282240166,5.0439,198.23,198.21,0.03451884]
[1739282240365,0.03536803,198.25,198.21,0.03451884]
[1739282241360,5.0438,198.24,198.21,0.03451884]
[1739282241666,0.03536803,198.25,198.21,0.03451884]
[1739282241867,35.67976926,198.36,198.21,0.03451884]
[1739282242166,2.3001,198.4,198.18,1.5373]
[1739282242167,35.67976926,198.33,198.18,1.5373]
[1739282242358,5.044,198.23,198.18,1.5373]
[1739282242564,35.67976926,198.3,198.18,1.5373]
[1739282242971,5.043,198.27,198.18,6.5823]
[1739282243164,0.03835626,198.26,198.22,0.03866706]
[1739282243667,5.0438,198.23,198.22,0.03866706]
[1739282243862,0.03835626,198.26,198.22,0.03866706]
[1739282244066,5.0438,198.23,198.22,0.03866706]
[1739282244269,5.0438,198.23,198.22,6.706e-05]
[1739282247272,0.03835626,198.26,198.22,6.706e-05]
[1739282248083,35.67976926,198.24,198.22,6.706e-05]
[1739282248566,5.0438,198.23,198.22,6.706e-05]
[1739282251172,0.03835626,198.26,198.22,6.706e-05]
[1739282251669,0.03835626,198.26,198.22,5.04406706]
[1739282251872,0.03835626,198.26,198.22,6.706e-05]
[1739282252974,5.0438,198.23,198.22,6.706e-05]
[1739282258579,5.0434,198.25,198.22,6.706e-05]
[1739282258782,0.03835626,198.26,198.22,6.706e-05]
[1739282258980,5.0438,198.23,198.22,6.706e-05]
[1739282261087,35.67976926,198.24,198.15,8.10568]
[1739282261282,5.0456,198.16,198.15,8.10568]
[1739282262283,0.03734338,198.17,198.15,8.10568]
[1739282263585,5.0456,198.16,198.15,8.10568]
[1739282264286,0.03734338,198.17,198.15,8.10568]
[1739282266190,35.67976926,198.26,198.15,8.10568]
[1739282266591,35.67976926,198.29,198.15,8.10568]
[1739282267193,37.27476926,198.32,198.15,8.10568]
[1739282267396,37.27476926,198.32,198.2,0.03524395]
[1739282267397,0.03429331,198.24,198.2,0.03524395]
[1739282267890,35.67976926,198.29,198.15,8.10568]
[1739282268093,5.0441,198.22,198.2,0.03407736]
[1739282268290,35.67976926,198.26,198.2,0.03407736]
[1739282268491,35.67976926,198.26,198.15,8.10568]
[1739282268692,5.0446,198.2,198.19,0.0379154]
[1739282269293,0.03870021,198.23,198.19,0.0379154]
[1739282270390,5.0441,198.22,198.19,0.0379154]
[1739282270596,0.03870021,198.23,198.19,0.0379154]
[1739282270986,5.0444,198.21,198.19,0.0379154]
[1739282271186,0.03870021,198.23,198.19,0.0379154]
[1739282272091,5.0443,198.21,198.19,0.0379154]
[1739282272287,0.03870021,198.23,198.19,0.0379154]
[1739282272488,35.67976926,198.21,198.19,1.54e-05]
[1739282272697,5.0446,198.2,198.19,1.54e-05]
[1739282274189,0.03870021,198.23,198.19,1.54e-05]
[1739282274898,5.0446,198.2,198.19,1.54e-05]
[1739282275199,5.0446,198.21,198.19,1.54e-05]
[1739282275399,0.03870021,198.23,198.19,1.54e-05]
[1739282276298,5.08260021,198.23,198.19,1.54e-05]
[1739282276499,0.03870021,198.23,198.19,1.54e-05]
[1739282277190,5.0443,198.22,198.19,1.54e-05]
[1739282277493,0.03870021,198.23,198.19,1.54e-05]
[1739282277799,5.0443,198.22,198.19,1.54e-05]
[1739282278099,0.03870021,198.23,198.19,1.54e-05]
[1739282278991,0.03870021,198.23,198.2,5.0444]
[1739282279899,0.03870021,198.23,198.19,1.54e-05]
[1739282280300,21.99310032,198.32,198.19,1.54e-05]
[1739282280601,5.0413,198.33,198.19,21.99310032]
[1739282280804,21.99310032,198.35,198.2,3.0447]
[1739282281004,21.99310032,198.35,198.24,5.0435]
[1739282281192,21.99310032,198.35,198.2,3.0447]
[1739282281392,0.03560432,198.31,198.28,0.03391555]
[1739282281600,5.0423,198.3,198.28,0.03391555]
[1739282281808,21.99310032,198.29,198.28,0.03391555]
[1739282281999,21.99310032,198.29,198.2,3.0447]
[1739282282801,5.0428,198.28,198.22,5.044]
[1739282283197,0.03870213,198.27,198.23,0.03603139]
[1739282284297,5.08180213,198.27,198.23,0.03603139]
[1739282284496,0.03870213,198.27,198.23,0.03603139]
[1739282284898,5.0436,198.24,198.23,0.03603139]
[1739282285502,5.0436,198.24,198.23,3.139e-05]
[1739282286302,0.03870213,198.27,198.23,3.139e-05]
[1739282286803,5.08150213,198.27,198.23,3.139e-05]
[1739282286996,0.03870213,198.27,198.23,3.139e-05]
[1739282287396,0.03870213,198.27,198.24,5.0435]
[1739282287599,0.03870213,198.27,198.24,1.6092]
[1739282288106,0.03870213,198.27,198.24,6.6526]
[1739282288405,0.03870213,198.27,198.24,1.6092]
[1739282289200,5.0418,198.31,198.26,5.0431]
[1739282289406,21.99310032,198.33,198.25,3.1223]
[1739282289605,5.0415,198.33,198.27,5.0428]
[1739282290110,21.99310032,198.42,198.26,21.99310032]
[1739282290311,0.03312871,198.32,198.28,0.03549573]
[1739282290508,102.15072949,198.45,198.29,21.99310032]
[1739282291210,5.0389,198.43,198.37,5.0403]
[1739282291405,102.15072949,198.45,198.29,21.99310032]
[1739282291913,0.03724568,198.39,198.37,5.0402]
[1739282292109,21.99310032,198.42,198.29,21.99310032]
[1739282292310,5.0403,198.38,198.36,0.03736089]
[1739282292505,21.99310032,198.39,198.25,3.1223]
[1739282292810,5.0404,198.37,198.35,0.0343851]
[1739282293015,21.99310032,198.39,198.25,3.1223]
[1739282293206,0.03226094,198.38,198.34,0.0360657]
[1739282293406,21.99310032,198.39,198.25,3.1223]
[1739282293607,0.03605652,198.38,198.34,0.03621967]
[1739282293907,5.0408,198.35,198.34,0.03213238]
[1739282294309,21.99310032,198.36,198.25,3.1223]
[1739282294912,21.99310032,198.39,198.25,3.1223]
[1739282295106,5.0405,198.36,198.3,5.0418]
[1739282295306,21.99310032,198.39,198.25,3.1223]
[1739282295505,0.03586344,198.35,198.31,0.0357052]
[1739282295704,21.99310032,198.51,198.32,21.99310032]
[1739282295911,21.99310032,198.51,198.35,21.99310032]
[1739282296214,21.99310032,198.55,198.39,21.99310032]
[1739282296417,1.00730294,198.55,198.42,21.99310032]
[1739282296811,0.03304655,198.5,198.47,0.03617733]
[1739282297410,5.0373,198.49,198.47,0.03617733]
[1739282297810,0.03304655,198.5,198.47,0.03617733]
[1739282298517,5.0375,198.48,198.47,0.03617733]
[1739282300612,5.07024655,198.5,198.47,0.03617733]
[1739282301017,0.03304655,198.5,198.47,0.03617733]
[1739282301616,10.0663,198.66,198.47,0.03617733]
[1739282301811,21.99310032,198.61,198.47,0.03617733]
[1739282302018,21.99310032,198.67,198.51,21.99310032]
[1739282302222,21.99310032,198.67,198.52,1.5343]
[1739282302518,21.99310032,198.7,198.54,21.99310032]
[1739282302919,0.03501549,198.64,198.6,0.03760815]
[1739282303714,0.03501549,198.64,198.61,5.0342]
[1739282303918,0.03501549,198.64,198.6,0.03760815]
[1739282305321,21.99310032,198.73,198.6,0.03760815]
[1739282305617,5.0323,198.69,198.6,5.0342]
[1739282305819,21.99310032,198.73,198.58,1.5185]
[1739282306011,21.99310032,198.76,198.6,21.99310032]
[1739282306215,5.0322,198.69,198.61,5.034]
[1739282306419,21.99310032,198.76,198.66,0.03542778]
[1739282307319,5.0311,198.73,198.66,5.06832778]
[1739282308114,21.99310032,198.76,198.66,0.03542778]
[1739282308710,0.1321,198.79,198.66,0.03542778]
[1739282308711,21.99310032,198.73,198.66,0.03542778]
[1739282309220,21.99310032,198.73,198.68,0.0380192]
[1739282310016,21.99310032,198.7,198.58,1.5185]
[1739282310225,5.0333,198.65,198.58,6.5534]
[1739282310718,5.0329,198.66,198.59,5.0344]
[1739282310919,21.99310032,198.7,198.58,1.5185]
[1739282311516,0.03824108,198.66,198.62,5.06811492]
[1739282311713,0.03824108,198.66,198.62,0.03441492]
[1739282313634,0.03824108,198.66,198.64,5.0334]
[1739282313822,0.03824108,198.66,198.62,0.03441492]
[1739282314217,21.99310032,198.75,198.62,22.02751524]
[1739282314424,1.5873,198.77,198.62,22.02751524]
[1739282314724,1.5873,198.77,198.68,5.0323]
[1739282314725,5.0309,198.74,198.68,5.0323]
[1739282314921,1.5873,198.77,198.62,21.99310032]
[1739282315428,21.99310032,198.8,198.68,0.03278588]
[1739282315820,5.0302,198.77,198.62,21.99310032]
[1739282316025,5.0302,198.77,198.72,0.03396991]
[1739282316228,21.99310032,198.8,198.65,21.99310032]
[1739282316427,27.02250032,198.8,198.75,5.0306]
[1739282316624,27.02250032,198.8,198.73,0.03736666]
[1739282316625,21.99310032,198.8,198.73,0.03736666]
[1739282317337,21.99310032,198.83,198.73,0.03736666]
[1739282317522,5.0294,198.8,198.74,5.0307]
[1739282317726,5.0294,198.8,198.74,5.06839773]
[1739282317932,21.99310032,198.8,198.74,0.03769773]
[1739282319030,21.99310032,198.83,198.74,0.03769773]
[1739282319530,21.99310032,198.83,198.77,0.03854367]
[1739282319725,5.0301,198.78,198.77,0.03854367]
[1739282320327,21.99310032,198.8,198.77,0.03854367]
[1739282320728,21.99310032,198.83,198.77,0.03854367]
[1739282321532,5.0297,198.79,198.77,0.03854367]
[1739282321733,21.99310032,198.83,198.77,0.03854367]
[1739282321927,21.99310032,198.8,198.77,0.03854367]
[1739282322121,5.0299,198.78,198.77,4.367e-05]
[1739282322328,21.99310032,198.8,198.67,1.6179]
[1739282322527,21.99310032,198.8,198.67,6.6504]
[1739282322730,5.0317,198.71,198.67,1.6179]
[1739282322933,21.99310032,198.77,198.67,1.6179]
[1739282323326,5.0321,198.7,198.63,1.5735]
[1739282323729,21.99310032,198.71,198.65,0.03813459]
[1739282323932,5.0327,198.67,198.65,0.03813459]
[1739282324124,0.0384231,198.68,198.61,6.5617]
[1739282324329,0.0384231,198.68,198.64,0.03872131]
[1739282325823,0.0384231,198.68,198.65,5.033]
[1739282326027,0.0384231,198.68,198.64,0.03872131]
[1739282326228,0.0384231,198.68,198.65,5.033]
[1739282326430,1.6225,198.78,198.64,0.03872131]
[1739282326723,1.6225,198.78,198.72,5.0314]
[1739282326929,0.2016,198.85,198.66,21.99310032]
[1739282327130,1.5181,198.84,198.67,1.4638]
[1739282327321,21.99310032,198.83,198.67,1.4638]
[1739282327834,21.99310032,198.83,198.73,0.03732361]
[1739282328328,21.99310032,198.83,198.73,5.06832361]
[1739282328535,1.5181,198.84,198.73,0.03732361]
[1739282328926,21.99310032,198.86,198.77,5.0299]
[1739282329129,5.0289,198.82,198.69,21.99310032]
[1739282329330,21.99310032,198.86,198.69,21.99310032]
[1739282329639,21.99310032,198.86,198.78,0.03487135]
[1739282329830,5.0282,198.85,198.78,0.03487135]
[1739282330030,21.99310032,198.86,198.78,0.03487135]
[1739282330635,5.0286,198.83,198.78,0.03487135]
[1739282331336,5.0284,198.84,198.78,0.03487135]
[1739282331638,1.5181,198.88,198.78,0.03487135]
[1739282332039,6.5455,198.88,198.82,5.0289]
[1739282332237,1.5181,198.88,198.82,5.0289]
[1739282332635,1.5181,198.88,198.83,0.03276262]
[1739282332838,5.0279,198.86,198.83,0.03276262]
[1739282333038,1.5181,198.88,198.83,0.03276262]
[1739282333339,5.0284,198.84,198.83,0.03276262]
[1739282333640,0.03339301,198.85,198.73,3.1028]
[1739282334139,5.0291,198.82,198.73,3.1028]
[1739282334344,1.5181,198.88,198.75,21.99310032]
[1739282334740,1.5181,198.88,198.8,0.03713417]
[1739282334741,0.03642534,198.83,198.8,0.03713417]
[1739282335848,5.0291,198.81,198.8,0.03713417]
[1739282336355,5.0296,198.8,198.74,5.0307]
[1739282336648,5.0296,198.8,198.73,1.5884]
[1739282337052,5.0296,198.8,198.74,5.0306]
[1739282337650,0.03290421,198.79,198.75,0.03774902]
[1739282338046,0.03290421,198.79,198.75,5.06834902]
[1739282338244,0.03290421,198.79,198.75,0.03774902]
[1739282338453,0.03290421,198.79,198.75,5.06834902]
[1739282338752,0.03290421,198.79,198.75,0.03774902]
[1739282339051,5.0304,198.76,198.75,0.03774902]
[1739282339551,5.0312,198.73,198.7,8.03068]
[1739282339758,21.99310032,198.77,198.7,8.03068]
[1739282340144,21.99310032,198.74,198.7,8.03068]
[1739282340552,27.02480032,198.71,198.7,5.04304903]
[1739282340849,21.99310032,198.71,198.58,1.6218]
[1739282341155,21.99310032,198.65,198.56,1.6094]
[1739282341343,21.99310032,198.65,198.56,6.6447]
[1739282341542,5.0344,198.61,198.51,1.6218]
[1739282341748,21.99310032,198.62,198.51,1.6218]
[1739282341943,21.99310032,198.62,198.54,0.03235171]
[1739282342151,0.03621901,198.58,198.54,0.03235171]
[1739282343461,21.99310032,198.68,198.54,0.03235171]
[1739282343861,21.99310032,198.68,198.51,1.6218]
[1739282344061,21.99310032,198.62,198.51,1.6218]
[1739282344452,21.99310032,198.62,198.5,3.1871]
[1739282344659,0.03569027,198.58,198.55,0.03613385]
[1739282344955,21.99310032,198.59,198.47,5.0377]
[1739282345162,0.03453754,198.58,198.55,0.03477717]
[1739282345459,5.06973754,198.58,198.46,27.03090032]
[1739282345653,0.03453754,198.58,198.55,0.03277597]
[1739282345850,21.99310032,198.68,198.44,1.5538]
[1739282345851,21.99310032,198.59,198.44,1.5538]
[1739282346057,0.033598,198.58,198.44,1.5538]
[1739282346354,21.99310032,198.59,198.44,1.5538]
[1739282346957,21.99310032,198.56,198.44,1.5538]
[1739282347158,21.99310032,198.56,198.5,0.0327343]
[1739282347159,0.03506058,198.53,198.5,0.0327343]
[1739282347558,5.0367,198.51,198.5,0.0327343]
[1739282347754,5.0367,198.51,198.5,3.43e-05]
[1739282349561,5.0391,198.42,198.38,1.5742]
[1739282349965,21.99310032,198.5,198.38,1.5742]
[1739282350757,5.0388,198.43,198.42,0.03820247]
[1739282351554,5.0385,198.44,198.42,0.03820247]
[1739282351763,21.99310032,198.44,198.42,0.03820247]
[1739282352063,21.99310032,198.44,198.31,3.0801]
[1739282352265,21.99310032,198.44,198.31,8.1219]
[1739282352558,21.99310032,198.44,198.31,3.0801]
[1739282352754,5.0403,198.37,198.31,3.0801]
[1739282352955,21.99310032,198.41,198.31,1.5227]
[1739282353158,21.99310032,198.5,198.32,0.03362171]
[1739282353159,0.03866141,198.36,198.32,0.03362171]
[1739282353357,5.0413,198.33,198.21,23.60720032]
[1739282353557,21.99310032,198.38,198.27,0.0351876]
[1739282354056,0.03795375,198.34,198.27,0.0351876]
[1739282354460,0.03795375,198.34,198.27,5.0779876]
[1739282354858,0.03795375,198.34,198.27,0.0351876]
[1739282356065,5.07925375,198.34,198.27,0.0351876]
[1739282356266,0.03795375,198.34,198.27,0.0351876]
[1739282356664,0.03795375,198.34,198.27,5.0779876]
[1739282356864,0.03795375,198.34,198.27,0.0351876]
[1739282358368,0.03795375,198.34,198.33,5.0413]
[1739282358573,21.99310032,198.44,198.28,3.073]
[1739282359670,0.03693202,198.38,198.34,0.03706919]
[1739282359973,5.0377,198.48,198.39,5.0395]
[1739282360168,21.99310032,198.53,198.36,21.99310032]
[1739282360369,21.99310032,198.56,198.39,21.99310032]
[1739282360565,5.0365,198.52,198.44,5.0385]
[1739282360765,5.0365,198.52,198.4,3.1729]
[1739282360766,21.99310032,198.56,198.4,3.1729]
[1739282361169,0.03324843,198.5,198.46,0.03700071]
[1739282361370,22.02634875,198.5,198.46,0.03700071]
[1739282361571,21.99310032,198.47,198.3,21.99310032]
[1739282361775,21.99310032,198.44,198.28,1.601]
[1739282361971,21.99310032,198.44,198.29,1.5719]
[1739282362377,21.99310032,198.41,198.29,1.5719]
[1739282362680,21.99310032,198.38,198.29,1.5719]
[1739282362878,0.03595501,198.37,198.33,0.03189201]
[1739282363773,5.07625501,198.37,198.33,0.03189201]
[1739282363974,0.03595501,198.37,198.33,0.03189201]
[1739282364873,5.07635501,198.37,198.33,0.03189201]
[1739282365871,0.03595501,198.37,198.33,0.03189201]
[1739282366272,35.69038615,198.47,198.33,0.03189201]
[1739282366572,35.69038615,198.5,198.38,5.04]
[1739282367372,35.69038615,198.5,198.34,35.69038615]
[1739282367569,35.69038615,198.5,198.38,5.04]
[1739282367774,0.03750197,198.46,198.42,0.03810763]
[1739282368484,5.0388,198.43,198.42,0.03810763]
[1739282368776,0.03750197,198.46,198.42,0.03810763]
[1739282368979,5.0383,198.45,198.42,0.03810763]
[1739282369180,0.03750197,198.46,198.42,0.03810763]
[1739282369474,5.0388,198.43,198.42,0.03810763]
[1739282370070,35.69038615,198.44,198.29,1.5719]
[1739282370274,35.69038615,198.41,198.29,1.5719]
[1739282370474,35.69038615,198.38,198.29,1.5719]
[1739282370776,5.0408,198.35,198.29,1.5719]
[1739282370977,35.69038615,198.38,198.29,1.5719]
[1739282371171,5.0407,198.36,198.29,6.614]
[1739282371373,0.03314653,198.35,198.32,0.03210093]
[1739282375178,5.041,198.34,198.32,0.03210093]
[1739282376285,5.0413,198.33,198.32,0.03210093]
[1739282376679,0.03314653,198.35,198.32,0.03210093]
[1739282376978,5.0411,198.34,198.32,0.03210093]
[1739282377176,0.03314653,198.35,198.32,0.03210093]
[1739282378985,0.03314653,198.35,198.32,5.07360093]
[1739282380086,0.03314653,198.35,198.32,0.03210093]
[1739282382089,0.03314653,198.35,198.34,5.041]
[1739282382288,0.03314653,198.35,198.32,0.03210093]
[1739282383086,0.03314653,198.35,198.34,5.041]
[1739282384793,5.0394,198.41,198.36,5.0405]
[1739282384994,21.95366852,198.44,198.36,5.0405]
[1739282385186,5.0395,198.4,198.29,1.5719]
[1739282385489,21.95366852,198.41,198.29,1.5719]
[1739282385884,5.0786717,198.37,198.33,0.03737718]
[1739282386085,0.0383717,198.37,198.33,0.03737718]
[1739282386391,0.0383717,198.37,198.34,5.041]
[1739282386592,0.0383717,198.37,198.33,0.03737718]
[1739282386989,5.041,198.34,198.33,0.03737718]
[1739282388289,5.0408,198.35,198.33,0.03737718]
[1739282388594,0.0383717,198.37,198.33,0.03737718]
[1739282388995,5.041,198.34,198.33,0.03737718]
[1739282390191,0.0383717,198.37,198.33,0.03737718]
[1739282392895,0.0383717,198.37,198.34,5.041]
[1739282394698,0.0383717,198.37,198.33,0.03737718]
[1739282395202,0.0383717,198.37,198.33,5.07857718]
[1739282395499,0.0383717,198.37,198.33,0.03737718]
[1739282395798,0.0383717,198.37,198.33,5.07847718]
[1739282396001,0.0383717,198.37,198.33,0.03737718]
[1739282396204,0.0383717,198.37,198.34,5.041]
[1739282396500,21.95366852,198.47,198.33,0.03737718]
[1739282396696,21.95366852,198.47,198.31,21.95366852]
[1739282396891,5.0391,198.42,198.31,21.95366852]
[1739282397096,21.95366852,198.47,198.31,21.95366852]
[1739282397298,21.95366852,198.47,198.37,5.0401]
[1739282397497,219.9273634,198.54,198.28,1.601]
[1739282397498,21.95366852,198.5,198.34,21.95366852]
[1739282397801,0.03262921,198.44,198.41,5.0392]
[1739282398499,5.0388,198.43,198.4,0.03414544]
[1739282398690,0.03262921,198.44,198.4,0.03414544]
[1739282399293,5.0393,198.41,198.4,0.03414544]
[1739282399798,5.0393,198.41,198.29,1.6226]
[1739282400002,21.95366852,198.38,198.26,1.4921]
[1739282400805,21.95366852,198.35,198.24,55.4446691]
[1739282401007,5.0426,198.28,198.24,55.4446691]
[1739282401305,21.95366852,198.32,198.24,55.4446691]
[1739282401502,5.0427,198.28,198.24,55.4446691]
[1739282401701,0.03706899,198.28,198.24,55.47858316]
[1739282401908,0.03706899,198.28,198.24,55.4446691]
[1739282402205,5.0433,198.25,198.24,55.48088656]
[1739282402401,21.95366852,198.26,198.22,81.67844158]
[1739282402800,26.99746852,198.23,198.15,3.0812]
[1739282403003,21.95366852,198.23,198.15,3.0812]
[1739282403306,5.0427,198.28,198.19,5.0448]
[1739282403500,21.95366852,198.29,198.17,0.03649485]
[1739282403697,21.95366852,198.29,198.15,3.0812]
[1739282403902,21.95366852,198.29,198.21,0.03845073]
[1739282404107,0.03827524,198.25,198.21,0.03845073]
[1739282405105,21.95366852,198.23,198.21,0.03845073]
[1739282405497,26.99746852,198.23,198.21,0.03845073]
[1739282405698,21.95366852,198.23,198.21,0.03845073]